[Event "AZE-ch Women 2019"]
[Site "Baku"]
[Date "2019.02.08"]
[Round "5.7"]
[White "Babayeva, Samira"]
[Black "Ismayil, Malak"]
[Result "0-1"]
[ECO "A05"]
[WhiteElo "1773"]
[BlackElo "1905"]
[Annotator "NA RC"]
[PlyCount "48"]
[EventDate "2019.02.04"]
[EventType "swiss"]
[EventCountry "AZE"]
[SourceTitle "playchess.com"]
[Source "ChessBase"]
[SourceQuality "1"]
[TimeControl "40/5400+30:1800+30"]

1. Nf3 {[%emt 0:09:49]} Nf6 {[%emt 0:00:00]} 2. c3 {[%emt 0:00:18]} e6 {[%emt 0:00:00]} 3. Qc2 {[%emt 0:00:04]} d5 {[%emt 0:00:11]} 4. d3 {[%emt 0:00:04]} c5 {[%emt 0:08:11]} 5. e4 {[%emt 0:00:10]} Qc7 {[%emt 0:02:01]} 6. Bg5 {[%emt 0:01:13]} Nbd7 {[%emt 0:09:56]} 7. Nbd2 {[%emt 0:01:59]} b6 {[%emt 0:06:00]} 8. d4 {[%emt 0:06:19]} dxe4 {[%emt 0:12:23]} 9. Nxe4 {[%emt 0:00:38]} Bb7 {[%emt 0:04:21]} 10. Nxf6+ {[%emt 0:08:31]} gxf6 {[%emt 0:00:09]} 11. Bh4 {[%emt 0:07:16]} O-O-O {[%emt 0:13:01]} 12. Bg3 {[%emt 0:01:05]} Bd6 $1 {[%emt 0:00:15]} 13. O-O-O {[%emt 0:00:35]} f5 $11 {[%emt 0:06:24]} 14. Qa4 {[%emt 0:06:25]} Bxg3 {[%emt 0:13:24]} 15. hxg3 {[%emt 0:01:25]} Kb8 {[%emt 0:00:16]} 16. Bb5 {[%emt 0:01:04]} Nf6 {[%emt 0:01:37]} 17. Ne5 {[%emt 0:07:15]} cxd4 {[%emt 0:01:27]} 18. Nc6+ {[%emt 0:07:56]} Bxc6 {[%emt 0:00:10]} 19. Bxc6 {[%emt 0:00:05]} dxc3 {[%emt 0:00:39]} 20. b3 {[%emt 0:00:17]} c2 {[%emt 0:04:35]} 21. Rde1 {[%emt 0:01:23]} Rd6 {[%emt 0:01:30]} 22. Bf3 {[%emt 0:00:45]} Qc3 {[%emt 0:01:17]} 23. Qa6 {[%emt 0:01:04]} Qd2+ {[%emt 0:00:35]} 24. Kb2 {[%emt 0:00:17]} c1=Q# {[%emt 0:00:16]} 0-1

[Event "AZE-ch Women 2019"]
[Site "Baku"]
[Date "2019.02.08"]
[Round "5.8"]
[White "Babazade, Zhala"]
[Black "Jafarova, Aysel"]
[Result "1/2-1/2"]
[ECO "B01"]
[WhiteElo "1823"]
[BlackElo "1376"]
[Annotator "NA RC"]
[PlyCount "66"]
[EventDate "2019.02.04"]
[EventType "swiss"]
[EventCountry "AZE"]
[SourceTitle "playchess.com"]
[Source "ChessBase"]
[SourceQuality "1"]
[TimeControl "40/5400+30:1800+30"]

1. e4 {[%emt 0:00:00]} d5 {[%emt 0:00:00]} (1... Nf6 2. Nc3 d5 {½-½ (22) Samolins,V (2412)-Luther,T (2515) Pardubice 2011}) 2. exd5 {[%emt 0:00:15]} Nf6 {[%emt 0:00:00]} 3. Nc3 {[%emt 0:00:16]} Nxd5 {[%emt 0:00:14]} 4. Nxd5 {[%emt 0:00:43]} Qxd5 {[%emt 0:00:03]} 5. Qf3 {[%emt 0:01:25]} c6 {[%emt 0:04:43]} 6. Qxd5 {[%emt 0:01:13] B02: Alekhine's Defence: Chase Variation and lines with early Nc3} cxd5 {[%emt 0:00:05]} 7. d4 {[%emt 0:01:02]} Nc6 $146 {[%emt 0:00:41]} ({Predecessor:} 7... Bf5 8. Bb5+ Nc6 {0-1 (41) Aigner,G (1786)-Fischer,G (2008) Bergen 2014}) 8. c3 {[%emt 0:00:19]} (8. Nf3 Bf5 9. c3 a6 10. Bf4 h6 11. Ne5 g5 12. Nxc6 bxc6 13. Be3 e6 {½-½ (22) Samolins,V (2412)-Luther,T (2515) Pardubice 2011}) 8... Bf5 {[%emt 0:00:56]} 9. Bb5 {[%emt 0:04:58]} a6 {[%emt 0:00:56]} 10. Be2 {[%emt 0:00:35]} e6 {[%emt 0:02:34]} 11. Nf3 {[%emt 0:01:32]} Bd6 {[%emt 0:02:26]} 12. O-O {[%emt 0:00:31]} ({Predecessor:} 12. Nh4 Bc2 13. Be3 O-O {0-1 (41) Aigner,G (1786)-Fischer,G (2008) Bergen 2014}) 12... h6 {[%emt 0:01:02]} 13. h3 {[%emt 0:01:06]} Kd7 {[%emt 0:01:29]} 14. Be3 {[%emt 0:02:00]} Rac8 {[%emt 0:01:44]} 15. Nd2 {[%emt 0:02:01]} Na5 {[%emt 0:08:47]} 16. f4 {[%emt 0:05:21]} Nc4 {[%emt 0:03:58]} 17. Nxc4 {[%emt 0:01:24]} dxc4 {[%emt 0:00:04]} 18. Rad1 {[%emt 0:01:18]} Be4 {[%emt 0:01:00]} 19. Bf3 {[%emt 0:03:11]} Bd3 {[%emt 0:04:29]} 20. Rf2 {[%emt 0:00:08]} Kc7 {[%emt 0:02:45]} 21. d5 {[%emt 0:02:15]} Rhe8 {[%emt 0:03:44]} 22. Bd4 {[%emt 0:02:58]} f6 {[%emt 0:11:03]} 23. dxe6 {[%emt 0:03:15]} Rxe6 {[%emt 0:00:25]} 24. Bd5 {[%emt 0:01:52]} Re7 {[%emt 0:00:49]} 25. g3 {[%emt 0:01:16]} Rce8 $11 {[%emt 0:01:40]} 26. Bf3 {[%emt 0:12:11]} Be2 {[%emt 0:01:18]} 27. Rd2 {[%emt 0:05:37]} Bxf3 {[%emt 0:00:21]} 28. Rxf3 {[%emt 0:00:05]} Re1+ {[%emt 0:02:06]} 29. Rf1 {[%emt 0:00:19]} R1e2 {[%emt 0:01:18]} 30. Rf2 {[%emt 0:00:07]} Re1+ {[%emt 0:00:04]} 31. Rf1 {[%emt 0:01:12]} R1e2 {[%emt 0:00:42]} 32. Rf2 {[%emt 0:00:27]} Re1+ {[%emt 0:00:23]} 33. Kg2 Ra1 1/2-1/2

[Event "AZE-ch Women 2019"]
[Site "Baku"]
[Date "2019.02.08"]
[Round "5.9"]
[White "Hajiyeva, Laman"]
[Black "Hajiyeva, Altunay"]
[Result "1-0"]
[ECO "D30"]
[WhiteElo "2040"]
[BlackElo "1315"]
[Annotator "NA RC"]
[PlyCount "73"]
[EventDate "2019.02.04"]
[EventType "swiss"]
[EventCountry "AZE"]
[SourceTitle "playchess.com"]
[Source "ChessBase"]
[SourceQuality "1"]
[TimeControl "40/5400+30:1800+30"]

1. d4 {[%emt 0:00:00]} d5 {[%emt 0:00:00]} 2. c4 {[%emt 0:00:00]} c6 {[%emt 0:00:00]} 3. Nf3 {[%emt 0:00:00]} Nf6 {[%emt 0:00:00]} 4. e3 {[%emt 0:00:00]} e6 {[%emt 0:00:00]} 5. Nbd2 {[%emt 0:00:00]} Bd6 $146 {[%emt 0:00:09]} ({Predecessor:} 5... Nbd7 6. Bd3 Bd6 7. O-O O-O 8. e4 dxe4 9. Nxe4 Nxe4 10. Bxe4 f5 11. Bc2 {1-0 (24) Lysyj,I (2668)-Ivanov,O (2155) Cheboksary 2016}) 6. Bd3 {[%emt 0:00:00] D30: Queen's Gambit Declined: Systems without Nc3} h6 {[%emt 0:00:06]} 7. O-O {[%emt 0:00:00]} Nbd7 {[%emt 0:00:26]} 8. e4 {[%emt 0:00:06]} dxe4 {[%emt 0:00:20]} 9. Nxe4 {[%emt 0:00:03]} Nxe4 {[%emt 0:11:16]} 10. Bxe4 {[%emt 0:00:06]} f5 {[%emt 0:02:29]} 11. Bc2 {[%emt 0:01:11]} O-O {[%emt 0:07:13]} 12. Re1 {[%emt 0:00:53]} Qf6 {[%emt 0:16:15]} 13. c5 {[%emt 0:02:19]} Bc7 {[%emt 0:02:57]} 14. Rxe6 {[%emt 0:02:45]} Qd8 {[%emt 0:14:24]} 15. Bb3 {[%emt 0:00:54]} Kh7 {[%emt 0:03:20]} ({Predecessor:} 15... Kh8 16. Re1 Nf6 17. Bd2 Ne4 18. Bc3 Ng5 19. d5 cxd5 20. Bxd5 Nxf3+ 21. Qxf3 Rb8 22. Rad1 Qh4 23. g3 Qh3 24. Re7 {1-0 (24) Lysyj,I (2668)-Ivanov,O (2155) Cheboksary 2016}) 16. Ng5+ {[%emt 0:03:36]} Kh8 {[%emt 0:06:00]} 17. Re1 {[%emt 0:02:37]} Ne5 {[%emt 0:05:51]} 18. dxe5 {[%emt 0:01:36]} Qxd1 {[%emt 0:06:26]} 19. Bxd1 {[%emt 0:00:06]} hxg5 {[%emt 0:00:55]} 20. Bxg5 {[%emt 0:00:05]} Be6 {[%emt 0:09:08]} 21. Bb3 {[%emt 0:02:03]} Rfe8 {[%emt 0:02:48]} 22. f4 $18 {[%emt 0:01:14]} a5 {[%emt 0:07:18]} 23. Bxe6 {[%emt 0:00:43]} Rxe6 {[%emt 0:00:03]} 24. Rad1 {[%emt 0:00:06]} a4 {[%emt 0:05:16]} 25. Rd7 {[%emt 0:02:06]} Ba5 {[%emt 0:00:33]} 26. Red1 {[%emt 0:00:28]} b5 {[%emt 0:00:23]} 27. a3 {[%emt 0:00:29]} b4 {[%emt 0:01:30]} 28. Rb7 {[%emt 0:00:32]} bxa3 29. bxa3 {[%emt 0:00:13]} Bc3 {[%emt 0:03:44]} 30. Rd3 {[%emt 0:00:56]} Ba5 {[%emt 0:00:39]} 31. Rdd7 {[%emt 0:00:12]} Rg8 {[%emt 0:00:22]} 32. Ra7 {[%emt 0:00:27]} Bc3 {[%emt 0:00:33]} 33. Rd3 {[%emt 0:00:05]} Ba1 {[%emt 0:00:22]} 34. Rh3+ {[%emt 0:00:05]} Rh6 {[%emt 0:00:15]} 35. Bxh6 {[%emt 0:00:16]} Bd4+ {[%emt 0:00:24]} 36. Kf1 {[%emt 0:00:05]} gxh6 {[%emt 0:00:31]} 37. Rxh6# {[%emt 0:00:02]} 1-0